Cogmind - Beta 15 @@@ ROGUE MODE // 2025.10.04 @ 21:16:14 Player: Tereza Result: Destroyed by D-53 Grenadier with Mini Grenade Launcher Performance ------------- Evolutions (0) 0 Regions Visited (2) 400 Robots Destroyed (21) 105 Value Destroyed (400) 400 Prototype IDs (0) 0 Alien Tech Used (0) 0 Bonus (0) 0 TOTAL SCORE: 905 Bonus ------- None Cogmind --------- Core Integrity 0/250 Matter 199/300 Energy 248/250 System Corruption 2% Temperature Cool (0) Movement Walking (190) Ox1 Location -10/Mines Parts ------- > --- POWER (1) -------- Ion Engine > --- PROPULSION (2) --- Improved Aluminum Leg Carbon-fiber Leg > --- UTILITY (2) ------ Large Storage Unit Seismic Detector > --- WEAPON (2) ------- Autogun Autogun > --- INVENTORY (15) --- Light Treads Improved Aluminum Leg Improved Aluminum Leg Improved Aluminum Leg Experimental Sensor Array Hardened Light Armor Plating Hardened Light Armor Plating Tractor Beam Assault Rifle Light Assault Rifle Autogun Autogun Grenade Launcher Mining Laser Peak State ------------ > --- POWER ------------ Ion Engine > --- PROPULSION ------- Improved Aluminum Leg Carbon-fiber Leg > --- UTILITY ---------- Large Storage Unit Seismic Detector > --- WEAPON ----------- Autogun Autogun > --- INVENTORY -------- Light Treads Improved Aluminum Leg Improved Aluminum Leg Improved Aluminum Leg Experimental Sensor Array Hardened Light Armor Plating Hardened Light Armor Plating Tractor Beam Assault Rifle Light Assault Rifle Autogun Autogun Grenade Launcher Mining Laser [Rating: 14] Favorites ----------- Power Ion Engine Engine Ion Engine Propulsion Light Treads Treads Light Treads Leg Improved Aluminum Leg Wheel Wheel Utility Large Storage Unit Device Seismic Detector Storage Large Storage Unit Protection Hardened Light Armor Plating Weapon Autogun Energy Gun Small Laser Ballistic Gun Autogun Ballistic Cannon Light Cannon Launcher Grenade Launcher Special Weapon Mining Laser Build | -11 -10 -10 ------- Run | Yrd Mat Min Slots Evolved . | . . . Power . | . . . Propulsion . | . . . Utility . | . . . Weapon . | . . . Parts Attached 23 | 7 10 6 Power 2 | 1 1 . Engine 2 | 1 1 . Core . | . . . Reactor . | . . . Propulsion 8 | 2 4 2 Treads 2 | 2 . . Leg 4 | . 2 2 Wheel 2 | . 2 . Hover . | . . . Flight . | . . . Utility 5 | 2 2 1 Device 1 | 1 . . Storage 2 | 1 1 . Processor . | . . . Hackware . | . . . Protection 2 | . 1 1 Artifact . | . . . Weapon 8 | 2 3 3 Energy Gun 2 | 2 . . Energy Cannon . | . . . Ballistic Gun 3 | . 2 1 Ballistic Cannon 1 | . 1 . Launcher 1 | . . 1 Special Weapon 1 | . . 1 Impact Weapon . | . . . Slashing Weapon . | . . . Piercing Weapon . | . . . Special Melee Weapon . | . . . Unidentified Prototypes . | . . . Parts Lost 3 | . 2 1 Power 1 | . 1 . Propulsion 2 | . 1 1 Utility . | . . . Weapon . | . . . Highest Loss Streak 1 | . 1 1 To Critical Strikes 1 | . 1 . Average Backups 12 | 3 11 14 Power . | . . . Propulsion 4 | 1 4 5 Utility 2 | . 2 3 Weapon 4 | 1 4 5 Tool/Special . | . . . Unused Backups 10 | . 2 8 Power . | . . . Propulsion 3 | . 1 2 Utility 2 | . . 2 Weapon 5 | . 1 4 Tool/Special . | . . . Average Slot Usage (%) 99 | . 99 99 Engine 13 | . 13 14 Treads 16 | . 17 13 Wheel 10 | . 9 13 Device 12 | . 13 12 Storage 14 | . 14 14 Protection 1 | . . 1 Energy Gun 2 | . 3 . Ballistic Gun 23 | . 22 27 Ballistic Cannon 1 | . 2 . Peak Build Rating 14 | 7 12 14 Average Rating 10 | 4 10 11 On Entrance 6 | . 7 11 Naked Turns . | . . . Heaviest Build 36 | 13 36 36 Greatest Support 40 | 40 40 28 Greatest Overweight (x) 3 | . 3 3 Average Overweight (x) 1 | . 1 1 Largest Inventory Capacity 15 | 8 15 15 Average Capacity 14 | 7 14 15 Most Carried 15 | 6 15 15 Average Carried 12 | 3 12 14 Final Capacity 15 | 8 15 15 Final Carried 14 | 4 14 14 Class Distribution -------------------- 100% | Mutant Dominant Class ---------------- Mutant | -10/Materials Mutant | -10/Mines Resources | -11 -10 -10 ----------- Run | Yrd Mat Min Matter Collected 663 | 270 159 234 Remotely . | . . . Salvage Created 649 | 83 322 244 Parts 30 | 4 18 8 Haulers Intercepted 2 | . 2 . Recyclers Shooed . | . . . Parts Field Recycled . | . . . Retrieved Matter . | . . . Parts Self-Destructed . | . . . Prevented . | . . . Kills | -11 -10 -10 ------- Run | Yrd Mat Min Combat Hostiles Destroyed 14 | . 7 7 Guns 12 | . 7 5 AOE 2 | . . 2 Classes Destroyed 9 | 2 6 1 Worker 1 | . 1 . Builder 1 | . 1 . Tunneler 1 | 1 . . Hauler 2 | . 2 . Recycler 2 | 1 . 1 Watcher 3 | . 3 . Swarmer 5 | . 5 . Grunt 6 | . 2 4 Assembled 3 | . . 3 Best Kill Streak 6 | 2 6 3 Combat Bots Only 5 | . 5 3 Max Kills in Single Turn 2 | 1 2 1 Gunslinging . | . . . Exploded 1 | . . 1 Melee . | . . . Uniques/NPCs Destroyed . | . . . Combat | -11 -10 -10 -------- Run | Yrd Mat Min Hostile Shots Fired 78 | . 49 29 Missed 19 | . 10 9 Hits 59 | . 39 20 Melee 3 | . . 3 Projectile 56 | . 39 17 AOE 6 | . . 6 Critical Strikes 1 | . 1 . Part Disruptions 1 | . 1 . Damage Taken 918 | . 400 518 Core 275 | . 63 212 Absorbed by Shields . | . . . Core Remaining (%) 100 | 100 . . Volleys Fired 49 | 6 25 18 Largest 2 | 2 2 2 Hottest 100 | 80 80 100 Shots Fired 95 | 12 51 32 Gun 89 | 12 48 29 Cannon 3 | . 3 . Launcher 2 | . . 2 Special 1 | . . 1 Kinetic 70 | . 41 29 Thermal 23 | 12 10 1 Explosive 2 | . . 2 Electromagnetic . | . . . Robot Hit Streak 9 | 4 7 9 Robot Miss Streak 4 | 1 4 2 Penetration Max . | . . . Secondary Targets 3 | . 2 1 Max Gunslinging Chain 1 | . 1 1 Shots Hit Robots 57 | 8 27 22 Core Hits 40 | 3 21 16 Critical Kills . | . . . Critical Parts Destroyed . | . . . Critical Strikes . | . . . Melee Attacks . | . . . Impact . | . . . Slashing . | . . . Piercing . | . . . Sneak Attacks . | . . . Combat Hostiles . | . . . Follow-up Attacks . | . . . Damage Inflicted 1114 | 85 541 488 Guns 817 | 85 426 306 Cannons 17 | . 17 . Explosions 223 | . 63 160 Melee . | . . . Ramming 57 | . 35 22 Kinetic 672 | . 366 306 Thermal 162 | 85 77 . Explosive 160 | . . 160 Electromagnetic 63 | . 63 . Impact . | . . . Slashing . | . . . Piercing . | . . . Highest Corruption 2 | . 2 2 Average Corruption 2 | . 2 2 Corruption Purged . | . . . Corruption Blocked . | . . . Effects 17 | . 9 8 Message Errors 5 | . 3 2 Matter Fused 2 | . . 2 Heat Flow Errors 2 | . 1 1 Energy Discharges 2 | . 1 1 Parts Rejected 1 | . 1 . Data Loss (minor) 3 | . 2 1 Misfires 1 | . 1 . Alerts 1 | . . 1 Overload Shots . | . . . Overflow Damage 1 | . 1 . Projectiles . | . . . Explosions 1 | . 1 . Melee . | . . . Knockbacks 1 | . . 1 Impact 1 | . . 1 Kinetic . | . . . Secondary . | . . . Self-Inflicted Damage 82 | . 44 38 Shots 3 | . 1 2 Rammed 6 | . 4 2 Targets Rammed 6 | . 4 2 Kicked . | . . . Crushed . | . . . Highest Temperature 265 | 72 265 143 Average Temperature 43 | 32 49 36 Received Heat Transfer 132 | . 60 72 Siege Activations . | . . . Martial Activations . | . . . Shielding Activations . | . . . Robots Disrupted . | . . . Combat Hostiles . | . . . Robots Corrupted . | . . . Combat Hostiles . | . . . Parts Fried . | . . . Impact Corruptions . | . . . Robots Melted . | . . . Combat Hostiles . | . . . Parts Melted . | . . . Heat Transferred 375 | 200 175 . Parts Sabotaged . | . . . Parts Stolen . | . . . Parts Stripped . | . . . Power Chain Reactions . | . . . Alert | -11 -10 -10 ------- Run | Yrd Mat Min Maximum Alert Level . | . . . Low Security (%) 100 | 100 100 100 Level 1 . | . . . Level 2 . | . . . Level 3 . | . . . Level 4 . | . . . Level 5 . | . . . High Security . | . . . Max Security . | . . . Peak Influence 105 | 5 105 50 Initial . | . . . Average 17 | . 22 9 Influence Increases 399 | 10 269 120 Destroy 0b10 Robot/C 220 | . 140 80 Destroy 0b10 Robot/NC 50 | 10 35 5 Destroy Leader 60 | . 40 20 Allied During Kill 1 | . . 1 Successful Hack 6 | . 6 . Disable Machine 45 | . 45 . Destroy Structure 17 | . 3 14 Influence Decreases 399 | 10 269 120 Time Decay 358 | 10 249 99 Lost Part 30 | . 20 10 Lost Ally 11 | . . 11 Squads Dispatched . | . . . Investigation . | . . . Extermination . | . . . Reinforcement . | . . . Assault . | . . . Garrison . | . . . Intercept . | . . . Searches Triggered . | . . . Construction Impeded . | . . . Haulers Reinforced . | . . . Active Scanning Responses . | . . . Cargo Convoy Interrupts . | . . . Stealth | -11 -10 -10 --------- Run | Yrd Mat Min Distress Signals . | . . . Communications Jammed . | . . . Distress Signals . | . . . Times Spotted 19 | . 11 8 Peak Tracking Total 6 | . 6 3 Tactical Retreats . | . . . Traps | -11 -10 -10 ------- Run | Yrd Mat Min Traps Triggered 1 | . 1 . Indirectly . | . . . Trap Hack Attempts . | . . . Triggered . | . . . Disarmed . | . . . Reprogrammed . | . . . Reused . | . . . Traps Extracted . | . . . Installed . | . . . Triggered . | . . . Machines | -11 -10 -10 ---------- Run | Yrd Mat Min Machines Disabled 3 | . 3 . Max in Single Turn 2 | . 2 . Machines Repaired . | . . . Machines Dismantled . | . . . Machines Sabotaged . | . . . Overloaded Fab Kills . | . . . Hacking | -11 -10 -10 --------- Run | Yrd Mat Min Machines Accessed 8 | . 7 1 Terminals 7 | . 6 1 Fabricators . | . . . Repair Stations . | . . . Recycling Units 1 | . 1 . Scanalyzers . | . . . Garrison Access . | . . . Total Hacks 13 | . 12 1 Successful 3 | . 3 . Failed 10 | . 9 1 Catastrophic 3 | . 3 . Database Lockouts . | . . . Manual 11 | . 10 1 Terminals 11 | . 10 1 Fabricators . | . . . Repair Stations . | . . . Recycling Units 2 | . 2 . Scanalyzers . | . . . Garrison Access . | . . . Terminal Hacks 2 | . 2 . Robot Analysis 2 | . 2 . Fabricator Hacks . | . . . Repair Station Hacks . | . . . Recycling Unit Hacks 1 | . 1 . Report Inventory 1 | . 1 . Scanalyzer . | . . . Garrison Access Hacks . | . . . Unauthorized Hacks . | . . . Terminals . | . . . Fabricators . | . . . Repair Stations . | . . . Recycling Units . | . . . Scanalyzers . | . . . Garrison Access . | . . . Data Cores Recovered . | . . . Used . | . . . Hacking Detections 7 | . 6 1 Full Trace Events . | . . . Feedback Events . | . . . Feedback Blocked . | . . . Robot Schematics Acquired . | . . . Robots Built . | . . . Authchips . | . . . Time . | . . . Total Robot Build Rating . | . . . Part Schematics Acquired . | . . . Parts Built . | . . . Authchips . | . . . Time . | . . . Total Part Build Rating . | . . . Parts Repaired . | . . . Time . | . . . Parts Recycled . | . . . Recycled Matter . | . . . Retrieved Matter . | . . . Retrieved Components . | . . . Parts Scanalyzed . | . . . Part Schematics Acquired . | . . . Parts Damaged . | . . . Bothacking | -11 -10 -10 ------------ Run | Yrd Mat Min Used RIF Installer . | . . . Robots Hacked . | . . . Non-combat . | . . . Combat . | . . . Robot Hacks Applied . | . . . Relay Couplers Released . | . . . Fabnet Peak Effective % . | . . . Robots Rewired . | . . . Allies Hacked . | . . . Hacks Repelled . | . . . Allies | -11 -10 -10 -------- Run | Yrd Mat Min Total Allies 1 | . . 1 Largest Group 1 | . . 1 Highest-Rated Group 31 | . . 31 Highest-Rated Ally 31 | . . 31 Total Orders . | . . . Ally Attacks 7 | . . 7 Total Damage 103 | . . 103 Kills . | . . . Allies Corrupted . | . . . Allies Melted . | . . . Intel | -11 -10 -10 ------- Run | Yrd Mat Min Active Infowar (turns) 1319 | 25 914 380 Seismic 1319 | 25 914 380 Robot Analysis Total 2 | . 2 . Derelict Logs Recovered 1 | . . 1 Drone Launches . | . . . Drone Recoveries . | . . . Exploration | -11 -10 -10 ------------- Run | Yrd Mat Min Turns Passed 1527 | 113 971 443 Spaces Moved 924 | 53 573 298 Core 4 | 4 . . Treads 183 | 49 134 . Legs 9 | . 6 3 Wheels 728 | . 433 295 Hover . | . . . Flight . | . . . Fastest Speed 50 | 50 110 115 Average Speed 129 | 151 132 120 Slowest Speed 240 | 160 240 190 Overloaded Moves . | . . . Propulsion Burnouts . | . . . Robots Hopped . | . . . Potential Cave-ins . | . . . Cave-ins Triggered . | . . . Exploration Rate (%) 54 | 5 97 61 Regions Visited 2 Branch Regions 1 Pre-discovered Areas . | . . . Known Exits Taken . | . . . Unknown Exits Taken 2 | 1 1 . Scrap Searched 2 | . . 2 Spaces Dug 1 | . . 1 Terrain Destroyed 17 | . . 17 Melee . | . . . Projectile 1 | . . 1 AOE 16 | . . 16 Terrain Rammed . | . . . Walls Destroyed . | . . . Machines Disabled . | . . . Actions | -11 -10 -10 --------- Run | Yrd Mat Min Total 1167 | 72 739 356 Wait 127 | . 107 20 Move 922 | 52 572 298 Hop . | . . . Pick Up 26 | 7 14 5 Fast Attach 6 | 4 2 . Attach 5 | 3 1 1 Detach . | . . . Swap 17 | . 10 7 Drop 9 | . 4 5 Fire 49 | 6 25 18 Melee . | . . . Ram 5 | . 3 2 Kick . | . . . Crush 1 | . 1 . Escape Stasis . | . . . Rewire . | . . . Trap . | . . . Miscellaneous . | . . . Route ------- -11/Scrapyard -10/Materials (discovered 5 exits: [*Mat x3] / *Min x2) -10/Mines History --------- Turn | Location | Event 47 | -11/Scrapyard | Discovered new exit (range 14) 114 | -11/Scrapyard | Entered Materials 306 | -10/Materials | Build established: Mutant 322 | -10/Materials | Discovered new exit (range 6) 477 | -10/Materials | Discovered new exit (range 16) 606 | -10/Materials | Discovered new exit (range 8) 756 | -10/Materials | Discovered new exit (range 15) 989 | -10/Materials | Discovered new exit (range 15) 1085 | -10/Materials | Entered Mines 1118 | -10/Mines | Met a Derelict bent on vengeance 1231 | -10/Mines | Found a damaged Exp. Sensor Array with a note attached 1234 | -10/Mines | Found Prototype Device 1314 | -10/Mines | Learned Materials garrison access intel 1316 | -10/Mines | Received a Mining Laser from a helpful Derelict 1449 | -10/Mines | Assembled infested the area 1454 | -10/Mines | Assisted by a Guerilla fighting off Assembled 1506 | -10/Mines | Core integrity fell below 50% 1523 | -10/Mines | Core integrity fell below 20% 1528 | -10/Mines | Destroyed by D-53 Grenadier with Mini Grenade Launcher Last Messages --------------- 01388_ Acquired 24 matter. 01396_ Dropped Aluminum Leg. 01396_ Acquired Carbon-fiber Leg. 01415_ R-06 Scavenger collects Ion Engine. 01449_ ALERT: Infestation in the mines, dispatching Demolisher response squad. 01454_ A derelict emerges from the shadows: "You need to get out of here! I've been tracking a group of Assembled to figure out where they're coming from, and they're closing on this area, come on!" 01495_ K-01 Serf collects debris. 01501_ System corrupted: IFF burst signal emitted. 01505_ as-37800 destroyed. 01507_ as-26712 destroyed. 01509_ Wheel destroyed. 01512_ The unstable cave ceiling collapses. 01512_ as-95471 destroyed. 01526_ U-05 Engineer lays Concrete. Map ----- +----------------------------------------------------+ | ???????????# ##?# ######???????# ########?? | | ???????????# ### #???###?????## #????????? | | ???????????## ## #??## ##???## ##????????? | | ????????????## # #### #???# ####?????????? | | ?????????????## % ##?## ##????????????? | | ??????????????## % = ### ##?????????????? | | ???????????????######%### ## ##?????????????? | | ????????????????????#!### #?????????????? | | ???????????????????##%## #?????????????? | | ??????????????????## = ##?????????????? | | ??????????????????# ##?????????????? | | ??????????????????# ##????????????? | | ??????????????????## % ##???????????? | | ???????????????????# ##??????????? | | ???????????? ??????## ## #??????????? | | ???????????? ??????## ###### ##??????????? | | ???????????? ???????## ##????# ##???????????? | | ????????????? ???????## ##?????# #????????????? | | ?????????????# ????????####??????# #????????????? | | ?????????????? ??????######?????# #????????????? | | ??????????????? ????### ##????# #????????????? | | ??????????????? ???# ##???# #????????????? | | ???????????????? ??## ##### #????????????? | | ????????????????# ?# ## ##???????????? | | ????????????????# ?# ## #???????????? | | ????????????????# # @ ### ##??????????? | | ????????????????# # d # #?? | | ????????????????# %]%#???????? | | ????????????????# # #### u #???????? | | ????????????????##### # #??# #??????? | | ????????????????????# #### #??# " " #?????? | | ???????????????????## ##?# #??## """ #?????? | | ?????????????####### ### #???# #?????? | | ????????????## ## ##### #?????? | | ????????????# ## ## ##?????? | | ????????????# """ ## #### ##?? #??????? | | ????????????# """ # #???# ##???????????? | | ???????????# """ #????###????????????? | | ???????????# #??????????????????? | | ???????????# #?????????????????? | | ???????????# ####### ##?????????????????? | | ???????????## ###?????####??????????????????? | | ????????????## ###??????????????????????????????? | | ?????????????###?????????????????????????????????? | | ?????????????????????????????????????????????????? | | ?????????????????????????????????????????????????? | | | | | | | | | +----------------------------------------------------+ Best States ------------- Heat Dissipation 25 Energy Generation 10 Energy Capacity 250 Matter Stores 300 Matter Capacity 300 Sight Range 16 Terrain Scan Density 10 Armor Coverage 150 Evasion (%) 40 Recoil Reduction 2 Item Schematics ----------------- None Robot Schematics ------------------ None Fabricated ------------ Nothing Repaired ---------- Nothing Alien Tech Used ----------------- None Achievements -------------- None Challenges ------------ None Game ------ Seed TowerComponentProjector Manual? 0 Play Time 00:12:07 Cumulative 196.1 hours Start 2025.10.04 @ 21:07:14 End 2025.10.04 @ 21:16:14 Sessions 1 Manual Loads 0 Difficulty Rogue Special Mode None Game No. 247 Rogue 247 Adventurer 0 Explorer 0 Win Type - Total 3 Types 3/0/0/0/0/0/0/0/0/0 Lore% 70 Gallery% 56 Achievement% 55 Wizard Run 0 Options --------- Layout 1 ASCII 0 Keyboard 1 Movement Numpad Keybinds 0 Fullscreen 2 Font 24/Smallcaps Map View 50x35 Zoom Use 0% Tactical HUD 1 Map Filters NONE Filters NONE Steam 1 RUN: d5da784b-dfc5-4816-8eb1-634857ccff44